Cogmind - Beta 17.1 @@@ ROGUE MODE // 2026.09.10 @ 23:24:29 Player: poison Result: Self-destructed Performance ------------- Evolutions (2) 1000 Regions Visited (5) 1000 Robots Destroyed (36) 180 Value Destroyed (862) 862 Prototype IDs (7) 140 Alien Tech Used (0) 0 Bonus (-38) -38 TOTAL SCORE: 3144 Bonus ------- Friendly Fire -38 Cogmind --------- Core Integrity 434/550 Matter 220/300 Energy 33/100 System Corruption 1% Temperature Cool (-10) Movement Treading (163) Location -8/Materials Parts ------- > --- POWER (1) -------- (None) > --- PROPULSION (4) --- Armored Treads Armored Treads Armored Treads Advanced Treads > --- UTILITY (4) ------ Cryofiber Web High-capacity Storage Unit Sensor Array Signal Interpreter > --- WEAPON (2) ------- Advanced Beam Cannon Advanced EMP Blaster > --- INVENTORY (20) --- Light Nuclear Core Carbon-fiber Leg Carbon-fiber Leg Airjet Heat Sink Large Storage Unit Huge Storage Unit Structural Scanner Experimental Sensor Array Terrain Scan Processor Hardlight Generator Decoy Drone Bay (16/16) Advanced EMP Blaster Mining Laser Mining Laser Peak State ------------ > --- POWER ------------ Improved Ion Engine > --- PROPULSION ------- Armored Treads Armored Treads Armored Treads Armored Treads > --- UTILITY ---------- Cryofiber Web High-capacity Storage Unit Experimental Sensor Array Signal Interpreter > --- WEAPON ----------- Beamcaster Advanced Beam Cannon > --- INVENTORY -------- Ion Engine Improved Ion Engine Carbon-fiber Leg Carbon-fiber Leg Airjet Heat Sink Large Storage Unit Huge Storage Unit Structural Scanner Sensor Array Terrain Scan Processor Decoy Drone Bay Advanced Beam Cannon Advanced EMP Blaster Advanced EMP Blaster Mining Laser Mining Laser [Rating: 40] Favorites ----------- Power Improved Ion Engine Engine Improved Ion Engine Propulsion Armored Treads Treads Armored Treads Leg Improved Aluminum Leg Utility Cryofiber Web Device Cryofiber Web Storage High-capacity Storage Unit Processor Signal Interpreter Hackware Hacking Suite Weapon Advanced Beam Cannon Energy Gun Beamcaster Energy Cannon Advanced Beam Cannon Ballistic Gun Assault Rifle Launcher Grenade Launcher Build | -11 -10 -10 -9 -9 -8 ------- Run | Yrd Mat Min Mat Min Mat Slots Evolved 4 | . . . 2 . 2 Power . | . . . . . . Propulsion 2 | . . . 1 . 1 Utility 2 | . . . 1 . 1 Weapon . | . . . . . . Parts Attached 43 | 6 7 . 21 3 6 Power 4 | 1 . . 2 . 1 Engine 4 | 1 . . 2 . 1 Core . | . . . . . . Reactor . | . . . . . . Propulsion 14 | 2 2 . 8 . 2 Treads 5 | . . . 3 . 2 Leg 9 | 2 2 . 5 . . Wheel . | . . . . . . Hover . | . . . . . . Flight . | . . . . . . Utility 14 | 1 2 . 7 3 1 Device 7 | . 1 . 3 2 1 Storage 4 | 1 1 . 2 . . Processor 2 | . . . 1 1 . Hackware 1 | . . . 1 . . Protection . | . . . . . . Artifact . | . . . . . . Weapon 11 | 2 3 . 4 . 2 Energy Gun 3 | . . . 2 . 1 Energy Cannon 3 | . 2 . 1 . . Ballistic Gun 2 | 2 . . . . . Ballistic Cannon . | . . . . . . Launcher 3 | . 1 . 1 . 1 Special Weapon . | . . . . . . Impact Weapon . | . . . . . . Slashing Weapon . | . . . . . . Piercing Weapon . | . . . . . . Special Melee Weapon . | . . . . . . Unidentified Prototypes 5 | . 1 . 1 2 1 Parts Lost 3 | . . . 2 . 1 Power 1 | . . . . . 1 Propulsion . | . . . . . . Utility 2 | . . . 2 . . Weapon . | . . . . . . Highest Loss Streak 2 | . . . 2 . 1 To Critical Strikes . | . . . . . . Average Backups 13 | 1 6 9 13 18 16 Power 1 | . 1 1 1 2 1 Propulsion 3 | . 1 2 3 4 3 Utility 5 | . . 2 4 7 7 Weapon 3 | . 2 3 3 5 4 Tool/Special . | . . . . . . Unused Backups 13 | . 3 1 1 . 8 Power 1 | . . . . . 1 Propulsion 4 | . 2 . 1 . 1 Utility 4 | . . 1 . . 3 Weapon 4 | . 1 . . . 3 Tool/Special . | . . . . . . Average Slot Usage (%) 97 | . 93 100 97 100 98 Engine 11 | . 14 14 11 11 9 Treads 20 | . . . 19 33 35 Leg 11 | . 28 28 12 . . Device 17 | . 8 14 19 18 17 Storage 11 | . 14 14 11 11 9 Processor 2 | . . . . 3 9 Energy Gun 7 | . . . 9 11 5 Energy Cannon 11 | . 18 14 10 11 9 Launcher 2 | . 5 14 1 . 3 Peak Build Rating 40 | 6 14 13 27 37 40 Average Rating 24 | 4 12 12 24 29 37 On Entrance 15 | . 6 12 13 27 35 Avg Prop Armor Cover (%) 7 | . . . 7 . . Naked Turns . | . . . . . . Heaviest Build 59 | 14 24 23 58 58 59 Greatest Support 82 | 20 26 26 60 60 82 Greatest Overweight (x) 12 | . . . 12 . 1 Average Overweight (x) . | . . . . . . Largest Inventory Capacity 20 | 8 10 10 20 20 20 Average Capacity 16 | 6 9 10 17 20 20 Most Carried 20 | 4 8 10 17 20 19 Average Carried 13 | 1 6 9 13 18 17 Final Capacity 20 | 8 10 10 20 20 20 Final Carried 20 | 4 8 10 17 20 16 Class Distribution -------------------- 96% | Mutant 3% | Scavenger-Mutant Dominant Class ---------------- Mutant | -10/Materials Mutant | -10/Mines Mutant | -9/Materials Mutant | -9/Mines Mutant | -8/Materials Resources | -11 -10 -10 -9 -9 -8 ----------- Run | Yrd Mat Min Mat Min Mat Matter Collected 749 | 30 28 131 368 113 79 Remotely . | . . . . . . Salvage Created 1133 | . 28 77 641 109 278 Parts 83 | . 1 6 48 13 15 Haulers Intercepted 2 | . . . 2 . . Recyclers Shooed 1 | . . . 1 . . Parts Field Recycled . | . . . . . . Retrieved Matter . | . . . . . . Parts Self-Destructed . | . . . . . . Prevented . | . . . . . . Parts Restored . | . . . . . . Kills | -11 -10 -10 -9 -9 -8 ------- Run | Yrd Mat Min Mat Min Mat Combat Hostiles Destroyed 28 | . . 4 12 7 5 Guns 10 | . . . 5 3 2 Cannons 11 | . . 2 4 4 1 AOE 7 | . . 2 3 . 2 Classes Destroyed 10 | . 1 2 6 . 1 Worker 1 | . 1 . . . . Builder 3 | . . . 2 . 1 Hauler 2 | . . . 2 . . Recycler 1 | . . . 1 . . Operator 1 | . . . 1 . . Swarmer 12 | . . 3 2 7 . Grunt 10 | . . 1 6 . 3 Brawler 1 | . . . 1 . . Sentry 4 | . . . 3 . 1 Hunter 1 | . . . . . 1 Best Kill Streak 5 | . 1 3 5 4 3 Combat Bots Only 4 | . . 3 3 4 2 Max Kills in Single Turn 4 | . 1 3 4 1 2 Gunslinging . | . . . . . . Exploded 2 | . . 2 2 . 1 Melee . | . . . . . . Uniques/NPCs Destroyed . | . . . . . . Combat | -11 -10 -10 -9 -9 -8 -------- Run | Yrd Mat Min Mat Min Mat Hostile Shots Fired 125 | . . 1 43 30 51 Missed 35 | . . 1 14 7 13 Hits 90 | . . . 29 23 38 Melee 8 | . . . 8 . . Projectile 82 | . . . 21 23 38 Critical Strikes 6 | . . . 5 1 . Damage Taken 1385 | . . . 534 172 679 Core 213 | . . . 53 44 116 Absorbed by Shields . | . . . . . . Core Remaining (%) 91 | 100 . 100 . 75 . Volleys Fired 82 | . 4 2 37 12 27 Largest 2 | . 1 2 2 2 2 Hottest 143 | . 68 98 143 143 143 Shots Fired 156 | . 4 4 75 25 48 Gun 69 | . . . 34 12 23 Cannon 79 | . 4 2 38 13 22 Launcher 8 | . . 2 3 . 3 Special . | . . . . . . Kinetic . | . . . . . . Thermal 137 | . 4 2 61 25 45 Explosive 5 | . . 2 3 . . Electromagnetic 14 | . . . 11 . 3 Robot Hit Streak 6 | . 1 2 4 6 4 Robot Miss Streak 5 | . 2 . 5 3 5 Penetration Max . | . . . . . . Secondary Targets . | . . . . . . Shots Hit Robots 69 | . 1 2 31 12 23 Core Hits 42 | . 1 5 20 7 9 Critical Kills . | . . . . . . Critical Parts Destroyed . | . . . . . . Critical Strikes 6 | . . . 1 2 3 Burn 6 | . . . 1 2 3 Melee Attacks . | . . . . . . Impact . | . . . . . . Slashing . | . . . . . . Piercing . | . . . . . . Sneak Attacks . | . . . . . . Combat Hostiles . | . . . . . . Follow-up Attacks . | . . . . . . Damage Inflicted 1968 | . 46 129 862 269 662 Guns 657 | . . . 281 126 250 Cannons 738 | . 42 42 285 143 226 Explosions 513 | . . 75 252 . 186 Melee . | . . . . . . Ramming 60 | . 4 12 44 . . Kinetic . | . . . . . . Thermal 1320 | . 42 42 491 269 476 Explosive 327 | . . 75 252 . . Electromagnetic 261 | . . . 75 . 186 Impact . | . . . . . . Slashing . | . . . . . . Piercing . | . . . . . . Highest Corruption 9 | . . . 9 9 1 Average Corruption 8 | . . . 8 9 1 Corruption Purged . | . . . . . . Corruption Blocked . | . . . . . . Effects 56 | . . . 42 14 . Message Errors 15 | . . . 10 5 . Matter Fused 12 | . . . 11 1 . Heat Flow Errors 6 | . . . 4 2 . Energy Discharges 5 | . . . 4 1 . Parts Fused 1 | . . . 1 . . Data Loss (minor) 7 | . . . 5 2 . Data Loss (major) 2 | . . . 2 . . Misfires 4 | . . . 2 2 . Alerts 2 | . . . 2 . . Weapon Failures 2 | . . . 1 1 . Overload Shots . | . . . . . . Overflow Damage 3 | . . . . . 3 Projectiles 3 | . . . . . 3 Explosions . | . . . . . . Melee . | . . . . . . Knockbacks 1 | . . 1 . . . Impact 1 | . . 1 . . . Kinetic . | . . . . . . Secondary . | . . . . . . Self-Inflicted Damage 96 | . . . 86 . 10 Shots 4 | . . . 3 . 1 Rammed 7 | . . . 7 . . Targets Rammed 13 | . 1 4 8 . . Kicked 6 | . 1 4 1 . . Crushed . | . . . . . . Highest Temperature 794 | . 112 36 449 176 794 Average Temperature 274 | . 64 22 195 74 430 Received Heat Transfer 234 | . . . 108 . 126 Effects 23 | . . . 4 . 19 Shutdowns 2 | . . . 2 . . Energy Bleed 2 | . . . . . 2 Interference 2 | . . . 1 . 1 Matter Decay 1 | . . . . . 1 Short Circuit 2 | . . . 1 . 1 Damage (minor) 3 | . . . . . 3 Damage (major) 10 | . . . . . 10 Damage (core) 1 | . . . . . 1 Siege Activations . | . . . . . . Martial Activations . | . . . . . . Shielding Activations . | . . . . . . Robots Disrupted . | . . . . . . Combat Hostiles . | . . . . . . Robots Corrupted . | . . . . . . Combat Hostiles . | . . . . . . Parts Fried 2 | . . . . . 2 Impact Corruptions . | . . . . . . Robots Melted . | . . . . . . Combat Hostiles . | . . . . . . Parts Melted 5 | . . 3 . 1 1 Heat Transferred 2812 | . 74 74 962 629 1073 Parts Sabotaged . | . . . . . . Parts Stolen . | . . . . . . Parts Stripped . | . . . . . . Power Chain Reactions . | . . . . . . Alert | -11 -10 -10 -9 -9 -8 ------- Run | Yrd Mat Min Mat Min Mat Maximum Alert Level . | . . . . . . Low Security (%) 100 | 100 100 100 100 100 100 Level 1 . | . . . . . . Level 2 . | . . . . . . Level 3 . | . . . . . . Level 4 . | . . . . . . Level 5 . | . . . . . . High Security . | . . . . . . Max Security . | . . . . . . Peak Influence 139 | . 14 91 139 90 60 Initial 23 | . . 3 23 . . Average 31 | . 1 22 48 32 10 Influence Increases 919 | . 26 121 427 190 155 Destroy 0b10 Robot/C 560 | . . 80 240 140 100 Destroy 0b10 Robot/NC 40 | . 5 . 30 . 5 Destroy Leader 124 | . . 10 64 20 30 Successful Hack 41 | . 21 . 15 . 5 Disable Machine 75 | . . 15 45 . 15 Destroy Structure 34 | . . 16 18 . . Lose Combat Pursuer 45 | . . . 15 30 . Influence Decreases 874 | . 17 69 488 190 110 Entered New Map 44 | . . 6 38 . . Time Decay 770 | . 17 63 430 190 70 Lost Part 30 | . . . 20 . 10 Purge Threat 30 | . . . . . 30 Squads Dispatched 3 | . . 1 1 . 1 Investigation 2 | . . 1 1 . . Extermination . | . . . . . . Reinforcement 1 | . . . . . 1 Assault . | . . . . . . Garrison . | . . . . . . Intercept . | . . . . . . Searches Triggered . | . . . . . . Construction Impeded . | . . . . . . Haulers Reinforced . | . . . . . . Active Scanning Responses . | . . . . . . Cargo Convoy Interrupts . | . . . . . . Stealth | -11 -10 -10 -9 -9 -8 --------- Run | Yrd Mat Min Mat Min Mat Distress Signals 3 | . . 1 2 . . Communications Jammed . | . . . . . . Distress Signals . | . . . . . . Times Spotted 47 | . 3 3 22 9 10 Peak Tracking Total 5 | . 2 3 5 4 3 Tactical Retreats 2 | . . . 1 1 . Traps | -11 -10 -10 -9 -9 -8 ------- Run | Yrd Mat Min Mat Min Mat Traps Triggered 2 | . . . . . 2 Indirectly . | . . . . . . Trap Hack Attempts . | . . . . . . Triggered . | . . . . . . Disarmed . | . . . . . . Reprogrammed . | . . . . . . Reused . | . . . . . . Traps Extracted . | . . . . . . Installed . | . . . . . . Triggered . | . . . . . . Machines | -11 -10 -10 -9 -9 -8 ---------- Run | Yrd Mat Min Mat Min Mat Machines Disabled 5 | . . 1 3 . 1 Max in Single Turn 1 | . . 1 1 . 1 Machines Repaired . | . . . . . . Machines Dismantled . | . . . . . . Machines Sabotaged . | . . . . . . Overloaded Fab Kills . | . . . . . . Hacking | -11 -10 -10 -9 -9 -8 --------- Run | Yrd Mat Min Mat Min Mat Machines Accessed 15 | . 3 1 7 1 3 Terminals 9 | . 3 . 4 . 2 Fabricators . | . . . . . . Repair Stations . | . . . . . . Recycling Units 2 | . . . 2 . . Scanalyzers 2 | . . . 1 . 1 Garrison Access . | . . . . . . Total Hacks 36 | . 10 1 14 1 10 Successful 24 | . 7 1 10 1 5 Failed 12 | . 3 . 4 . 5 Catastrophic 3 | . 1 . 2 . . Database Lockouts . | . . . . . . Manual . | . . . . . . Terminals 26 | . 10 . 8 . 8 Fabricators . | . . . . . . Repair Stations . | . . . . . . Recycling Units 3 | . . . 3 . . Scanalyzers 5 | . . . 3 . 2 Garrison Access . | . . . . . . Terminal Hacks 18 | . 7 1 4 1 5 Record 4 | . 3 . . . 1 Prototype ID Bank 1 | . 1 . . . . Open Door 2 | . . 1 . 1 . Branch Access Points 1 | . . . 1 . . Emergency Access Points 1 | . . . 1 . . Terminal Index 1 | . . . 1 . . Repair Station Index 1 | . . . 1 . . Alert Level 1 | . . . . . 1 Unreport Threat 1 | . . . . . 1 Dispatch Records 2 | . 1 . . . 1 Hauler Manifests 1 | . . . . . 1 Registered Components 1 | . 1 . . . . Zone Layout 1 | . 1 . . . . Fabricator Hacks . | . . . . . . Repair Station Hacks . | . . . . . . Recycling Unit Hacks 3 | . . . 3 . . Report Inventory 2 | . . . 2 . . Retrieve Components 1 | . . . 1 . . Scanalyzer 3 | . . . 3 . . Retrieve Study 3 | . . . 3 . . Garrison Access Hacks . | . . . . . . Unauthorized Hacks . | . . . . . . Terminals . | . . . . . . Fabricators . | . . . . . . Repair Stations . | . . . . . . Recycling Units . | . . . . . . Scanalyzers . | . . . . . . Garrison Access . | . . . . . . Data Cores Recovered 1 | . . . 1 . . Used . | . . . . . . Hacking Detections 7 | . 1 . 3 . 3 Full Trace Events 2 | . . . 2 . . Feedback Events 1 | . . . 1 . . Corruption 1 | . . . 1 . . Feedback Blocked . | . . . . . . Robot Schematics Acquired . | . . . . . . Robots Built . | . . . . . . Authchips . | . . . . . . Time . | . . . . . . Total Robot Build Rating . | . . . . . . Part Schematics Acquired . | . . . . . . Parts Built . | . . . . . . Authchips . | . . . . . . Time . | . . . . . . Total Part Build Rating . | . . . . . . Part Studies Acquired 2 | . . . 2 . . Parts Repaired . | . . . . . . Time . | . . . . . . Parts Recycled . | . . . . . . Recycled Matter . | . . . . . . Retrieved Matter . | . . . . . . Retrieved Components 5 | . . . 5 . . Parts Scanalyzed . | . . . . . . Part Schematics Acquired . | . . . . . . Parts Damaged . | . . . . . . Bothacking | -11 -10 -10 -9 -9 -8 ------------ Run | Yrd Mat Min Mat Min Mat Used RIF Installer . | . . . . . . Robots Hacked . | . . . . . . Non-combat . | . . . . . . Combat . | . . . . . . Robot Hacks Applied . | . . . . . . Relay Couplers Released . | . . . . . . Fabnet Peak Effective % . | . . . . . . Robots Rewired . | . . . . . . Allies Hacked . | . . . . . . Hacks Repelled . | . . . . . . Allies | -11 -10 -10 -9 -9 -8 -------- Run | Yrd Mat Min Mat Min Mat Total Allies . | . . . . . . Largest Group . | . . . . . . Highest-Rated Group . | . . . . . . Highest-Rated Ally . | . . . . . . Total Orders . | . . . . . . Ally Attacks . | . . . . . . Total Damage . | . . . . . . Kills . | . . . . . . Allies Corrupted . | . . . . . . Allies Melted . | . . . . . . Intel | -11 -10 -10 -9 -9 -8 ------- Run | Yrd Mat Min Mat Min Mat Active Infowar (turns) 1215 | . 159 244 258 151 403 Sensors 1069 | . 159 244 112 151 403 Structural 97 | . . . 97 . . T.N.C. 49 | . . . 49 . . Robot Analysis Total . | . . . . . . Derelict Logs Recovered 1 | . . . . 1 . Drone Launches . | . . . . . . Drone Recoveries . | . . . . . . Exploration | -11 -10 -10 -9 -9 -8 ------------- Run | Yrd Mat Min Mat Min Mat Turns Passed 2866 | 76 254 244 1331 485 476 Spaces Moved 1657 | 57 187 183 755 258 217 Core 13 | 6 . . 7 . . Treads 893 | . . . 418 258 217 Legs 751 | 51 187 183 330 . . Wheels . | . . . . . . Hover . | . . . . . . Flight . | . . . . . . Fastest Speed 50 | 50 120 120 105 170 161 Average Speed 147 | 112 120 120 148 170 170 Slowest Speed 650 | 120 120 120 650 170 250 Overloaded Moves . | . . . . . . Propulsion Burnouts . | . . . . . . Robots Hopped . | . . . . . . Potential Cave-ins . | . . . . . . Cave-ins Triggered . | . . . . . . Exploration Rate (%) 31 | 4 32 42 45 44 19 Regions Visited 5 Branch Regions 2 Pre-discovered Areas 2 | . . . . 2 . Known Exits Taken 2 | . . . 1 1 . Unknown Exits Taken 3 | 1 1 1 . . . Scrap Searched 1 | . . . . 1 . Spaces Dug . | . . . . . . Terrain Destroyed 31 | . . 16 15 . . Melee . | . . . . . . Projectile . | . . . . . . AOE 31 | . . 16 15 . . Terrain Rammed . | . . . . . . Walls Destroyed . | . . . . . . Machines Disabled . | . . . . . . Actions | -11 -10 -10 -9 -9 -8 --------- Run | Yrd Mat Min Mat Min Mat Total 1923 | 66 213 203 886 280 275 Wait 60 | . . 11 35 1 13 Move 1652 | 56 186 182 754 257 217 Hop . | . . . . . . Pick Up 31 | 4 7 3 13 2 2 Fast Attach 23 | 6 4 . 8 2 3 Attach 12 | . . . 6 1 5 Detach 4 | . . . 2 1 1 Swap 16 | . 3 . 9 2 2 Drop 30 | . 8 1 14 2 5 Fire 82 | . 4 2 37 12 27 Melee . | . . . . . . Ram . | . . . . . . Kick 6 | . 1 4 1 . . Crush 7 | . . . 7 . . Escape Stasis . | . . . . . . Rewire . | . . . . . . Trap . | . . . . . . Miscellaneous . | . . . . . . Route ------- -11/Scrapyard -10/Materials (discovered 2 exits: *Min x2) -10/Mines -9/Materials (discovered 5 exits: *Mat / *Min x2 / *Sto x2) -9/Mines -8/Materials (discovered 1 exit: [*Fac]) History --------- Turn | Location | Event 7 | -11/Scrapyard | Discovered new exit (range 16) 77 | -11/Scrapyard | Entered Materials 277 | -10/Materials | Discovered new exit (range 14) 308 | -10/Materials | Build established: Mutant 308 | -10/Materials | Discovered new exit (range 13) 331 | -10/Materials | Entered Mines 332 | -10/Mines | Assembled infested the area 337 | -10/Mines | Assisted by a Guerilla fighting off Assembled 426 | -10/Mines | Met a Derelict shopkeep closing up shop 493 | -10/Mines | Discovered new exit (range 5) 575 | -10/Mines | Entered Materials 575 | -9/Materials | Evolved 2 slots: Propulsion x1, Utility x1 828 | -9/Materials | Identified exit to Mines 828 | -9/Materials | Identified exit to Storage 1797 | -9/Materials | Discovered new exit (range 9) 1906 | -9/Materials | Entered Mines 2000 | -9/Mines | Found the Drone Emporium 2011 | -9/Mines | Found Prototype Device 2013 | -9/Mines | Identified Decoy Drone Bay 2070 | -9/Mines | Learned location of Zion (-7) 2236 | -9/Mines | Found a damaged Exp. Sensor Array with a note attached 2239 | -9/Mines | Found Prototype Device 2240 | -9/Mines | Identified Exp. Sensor Array 2253 | -9/Mines | Discovered new exit (range 12) 2254 | -9/Mines | Learned location of Storage (-9) 2274 | -9/Mines | Identified exit to Materials 2391 | -9/Mines | Entered Materials 2391 | -8/Materials | Evolved 2 slots: Propulsion x1, Utility x1 2809 | -8/Materials | Discovered new exit (range 9) 2867 | -8/Materials | Self-destructed Last Messages --------------- U-05 Engineer lays Concrete. Acquired Adv. Treads. Acquired Arm. Treads. O-16 Technician: "IFF HANDSHAKE FAILED. SECURING TERMINAL." O-16 Technician uses terminal to summon reinforcements. ALERT: Hostiles spotted, dispatching reinforcements to Terminal M001. O-16 Technician locks terminal. U-05 Engineer lays Concrete. G-47 Trooper destroyed. Door malfunctions. Imp. Ion Engine destroyed. Destroyed Lgt. Nuclear Core. U-05 Engineer destroyed. Lgt. Nuclear Core fried. Imp. Heat Sink fried. G-47 Trooper destroyed. G-47 Trooper IFF system glitched. Map ----- +----------------------------------------------------+ | # [ ]#???????????????????????????????????? | | #########???????????????????????????????????? | | #######?????????????????????????????????????????? | | #?????????????????? ????????????????????? | | """" #?????????????????? ????????????????????? | | "S"" #?????????????????? ????????????????????? | | " "" #?????????????????? ???????????????????? | | #?????????????????? ???????????????????? | | """ #?????????????????? ???????????????????? | | """ #?????????????????? ???????????????????? | | """ #?????????????????# "????????????????????? | | #?????????????????# ????????????????????? | | #######?????????????????# ????????????????????? | | ?????????????????????#### #????????????????????? | | ????????????????????##! #????????????????????? | | ????????????????????#! #????????????????????? | | ##########??????????#! #???????x????????????? | | """ ! #??????????#! #????????????????????? | | "T" #??????????#! #????????????????????? | | [ """ #??????????##! #????????????????????? | | [ """ #???????????#### ^#????????????????????? | | """ #??????????????# #????????????????????? | | #??????????????# #????????????????????? | | ###########????# #????????????????????? | | # #?#### #????????????????????? | | ######+### T #?# @ ########?????????????? | | #### # #?# ! % #?????????????? | | # """ """ #?# ! !%|!g< #?????????????? | | + """ """ #?# ! !u= %= #?????????????? | | # """ """ #?# ###/####?????????????? | | #### # x ! #?## ##??? ???????????????? | | ???## ## #??# #?????" ??????????????? | | #####+###+##### #?????? ?????????????? | | #??????? #???????????? | | #+##### #?????????????????????? | | * """ """ # ## #?????????????????????? | | * """ """ # ## #?????????????????????? | | """ """ # ## #?????????????????????? | | # ## #?????????????????????? | | ? ? # ## #?????????????????????? | | ??? ####### #?????????????????????? | | ?? ????? #?????????????????????? | | ?? ??^ ????? #?????????????????????? | | ??? ???^ ????? #?????????????????????? | | ?????? ???? ####?????????????????????? | | ???????##########???? ?????????????????????????? | | ????????????????????? ?????????????????????????? | | ????????????????????? ?????????????????????????? | | ?????????????????????? ?????????????????????????? | | ????????????????????????????????????????????????? | +----------------------------------------------------+ Best States ------------- Heat Dissipation 48 Energy Generation 12 Energy Capacity 265 Matter Stores 300 Matter Capacity 300 Sight Range 16 Robot Scan Range 20 Terrain Scan Density 10 Base Temperature (-) 100 Evasion (%) 55 Recoil Reduction 4 Offensive Hacking 10 Item Schematics ----------------- None Robot Schematics ------------------ None Fabricated ------------ Nothing Repaired ---------- Nothing Studied --------- Imp. Aluminum Leg | -9/Materials | Hacked Ion Engine | -9/Materials | Hacked Alien Tech Used ----------------- None Achievements -------------- DIY Cooler Challenges ------------ None Game ------ Seed ShockboltFusionMatter Manual? 0 Play Time 00:29:54 Cumulative 4.8 hours Start 2026.09.10 @ 22:55:37 End 2026.09.10 @ 23:24:29 Sessions 1 Manual Loads 0 Difficulty Rogue Special Mode None Game No. 8 Rogue 8 Adventurer 0 Explorer 0 Win Type - Total 0 Types 0/0/0/0/0/0/0/0/0/0 Lore% 7 Gallery% 9 Achievement% 8 Wizard Run 0 Options --------- Layout 1 ASCII 0 Keyboard 0 Movement Arrows Keybinds 0 Fullscreen 1 Font 24/Smallcaps Map View 50x35 Zoom Use 0% Tactical HUD 0 Map Filters NONE Filters NONE Steam 1 RUN: e4f2c4ee-8438-429f-9c64-2dc00c0209fd